bitfinex/quotes_SOLUSD_20250912
["timestamp","ask_amount","ask_price","bid_price","bid_amount"]
[1757669932944,38.01358482,237.7,237.69,23.64285271]
[1757669934638,38.01358482,237.7,237.69,27.0976952]
[1757669935540,118.21358482,237.7,237.69,27.0976952]
[1757669936533,118.21358482,237.7,237.69,23.64285271]
[1757669936725,119.21358482,237.7,237.69,23.64285271]
[1757669940430,65.29410094,237.7,237.69,23.64285271]
[1757669940630,38.30722292,237.7,237.69,23.64285271]
[1757669941448,11.24827714,237.7,237.69,23.64285271]
[1757669941750,43.1,237.75,237.69,23.64285271]
[1757669942134,43.1,237.75,237.69,17.80275459]
[1757669942447,43.1,237.75,237.7,30.42113951]
[1757669943043,43.1,237.75,237.74,39.59559401]
[1757669943234,0.72,237.76,237.74,39.59559401]
[1757669943235,0.03,237.76,237.75,13.59559401]
[1757669943753,0.72,237.76,237.75,26.21150267]
[1757669944254,0.72,237.76,237.75,30.41760151]
[1757669951544,1.72,237.76,237.75,30.41760151]
[1757669960162,1.72,237.76,237.75,12.61590866]
[1757669960862,1.72,237.76,237.73,26.0]
[1757669961065,0.69,237.75,237.73,26.0]
[1757669961262,0.69,237.74,237.73,26.0]
[1757669961662,1.72,237.76,237.73,26.0]
[1757669961864,0.69,237.75,237.74,26.0]
[1757669962365,0.69,237.75,237.74,38.61750047]
[1757669962581,1.03,237.76,237.74,38.61750047]
[1757669962750,1.03,237.76,237.74,39.27750047]
[1757669963068,1.03,237.76,237.75,4.20609884]
[1757669963251,1.03,237.76,237.75,17.80169285]
[1757669963448,1.03,237.76,237.75,19.48388475]
[1757669964050,1.03,237.76,237.75,5.88829074]
[1757669964257,1.72,237.76,237.75,5.88829074]
[1757669968457,1.03,237.76,237.75,5.88829074]
[1757669968775,1.03,237.76,237.75,20.20388475]
[1757669969450,1.03,237.76,237.75,19.48388475]
[1757669972155,1.74,237.76,237.75,19.48388475]
[1757669972561,1.03,237.76,237.75,19.48388475]
[1757669973170,1.03,237.76,237.75,20.20388475]
[1757669973561,1.03,237.76,237.75,19.48388475]
[1757669975976,1.03,237.76,237.75,20.20388475]
[1757669977584,0.13,237.79,237.78,26.0]
[1757669977884,0.13,237.79,237.78,43.80116218]
[1757669978080,0.13,237.79,237.78,30.20556817]
[1757669978384,0.84,237.79,237.78,30.20556817]
[1757669978898,0.84,237.79,237.78,42.82094632]
[1757669979583,1.84,237.79,237.78,42.82094632]
[1757669984785,1.84,237.79,237.78,16.82094632]
[1757669984988,21.84,237.79,237.78,12.61537815]
[1757669985597,20.0,237.77,237.75,4.20597221]
[1757669985893,0.71,237.76,237.75,4.20597221]
[1757669987493,15.8,237.75,237.74,12.61537815]
[1757669987675,36.51,237.75,237.73,0.12]
[1757669988273,15.8,237.74,237.73,0.12]
[1757669988697,16.51,237.74,237.73,0.12]
[1757669991896,0.71,237.74,237.73,0.12]
[1757669992393,1.71,237.74,237.73,0.12]
[1757669997401,1.0,237.74,237.73,0.12]
[1757669997601,1.68,237.74,237.73,0.12]
[1757670005002,1.0,237.74,237.73,4.99645269]
[1757670007299,1.0,237.74,237.73,4.32645269]
[1757670007887,1.0,237.74,237.73,4.99645269]
[1757670008087,1.0,237.74,237.73,4.32645269]
[1757670008517,1.0,237.74,237.73,4.99645269]
[1757670011596,1.0,237.74,237.73,30.99645269]
[1757670012288,1.0,237.74,237.73,30.32645269]
[1757670013317,1.0,237.74,237.73,26.12]
[1757670013526,1.0,237.74,237.73,4.32645269]
[1757670014049,1.68,237.74,237.73,26.12]
[1757670014213,1.68,237.74,237.73,0.12]
[1757670022441,1.0,237.74,237.73,0.12]
[1757670024428,1.68,237.74,237.73,0.12]
[1757670024627,1.0,237.74,237.73,0.12]
[1757670025135,1.72,237.74,237.73,0.12]
[1757670025639,1.0,237.74,237.73,0.12]
[1757670027023,1.72,237.74,237.73,0.12]
[1757670028225,1.0,237.74,237.73,0.12]
[1757670028830,1.0,237.74,237.73,5.02645269]
[1757670029028,1.0,237.74,237.73,0.82]
[1757670029234,1.0,237.74,237.73,4.32645269]
[1757670029834,1.0,237.74,237.73,5.02645269]
[1757670031646,1.0,237.74,237.73,4.32645269]
[1757670032230,1.0,237.74,237.73,5.02645269]
[1757670033744,0.03,237.76,237.74,13.59559401]
[1757670033949,0.03,237.76,237.74,14.29559401]
[1757670034158,0.03,237.76,237.75,18.50169285]
[1757670034641,0.03,237.76,237.75,20.18367254]
[1757670034853,0.03,237.76,237.75,46.18367254]
[1757670035030,0.03,237.76,237.75,20.18367254]
[1757670036044,0.03,237.76,237.75,46.18367254]
[1757670036231,0.03,237.76,237.75,20.18367254]
[1757670037046,1.03,237.76,237.75,20.18367254]
[1757670038060,0.13,237.79,237.78,39.59559401]
[1757670038332,0.13,237.79,237.78,43.80116218]
[1757670038634,0.13,237.79,237.78,44.50116218]
[1757670038836,0.13,237.79,237.78,46.18307115]
[1757670042838,1.13,237.79,237.78,46.18307115]
[1757670051438,0.03,237.81,237.79,13.59559401]
[1757670051637,0.03,237.81,237.79,14.29559401]
[1757670051942,0.03,237.81,237.8,14.29559401]
[1757670052141,0.03,237.81,237.8,26.90885054]
[1757670053759,0.03,237.81,237.8,31.114065]
[1757670054139,0.03,237.81,237.8,30.414065]
[1757670055363,0.03,237.81,237.8,31.094065]
[1757670056549,0.03,237.81,237.8,30.414065]
[1757670056753,0.03,237.81,237.8,31.094065]
[1757670057153,0.03,237.81,237.8,30.414065]
[1757670058547,0.6424,237.81,237.8,30.414065]
[1757670061350,0.6424,237.81,237.8,31.094065]
[1757670063653,0.03,237.82,237.8,31.094065]
[1757670063857,0.03,237.82,237.8,16.81847099]
[1757670064052,0.73,237.82,237.81,13.59559401]
[1757670064253,0.73,237.82,237.81,26.20779]
[1757670064452,0.03,237.82,237.81,26.20779]
[1757670065057,0.03,237.82,237.81,12.61219599]
[1757670065252,0.03,237.82,237.81,26.0]
[1757670065452,0.03,237.82,237.81,27.68176753]
[1757670066157,0.03,237.82,237.81,31.88680516]
[1757670067875,0.03,237.82,237.81,32.56680516]
[1757670069473,0.03,237.82,237.81,31.88680516]
[1757670070178,0.03,237.82,237.81,32.56680516]
[1757670071180,0.03,237.82,237.81,31.88680516]
[1757670071684,0.03,237.82,237.81,32.56680516]
[1757670071862,0.03,237.82,237.81,46.16239917]
[1757670072679,0.1,237.89,237.85,39.59559401]
[1757670072855,0.1,237.89,237.86,14.27559401]
[1757670073058,0.8,237.89,237.86,13.59559401]
[1757670073274,0.8,237.89,237.81,14.71763171]
[1757670073275,0.7,237.88,237.87,12.60848551]
[1757670073665,0.7,237.88,237.8,4.20521446]
[1757670073666,20.0,237.86,237.8,4.20521446]
[1757670073859,20.0,237.86,237.82,12.61325653]
[1757670073860,0.7,237.85,237.82,12.61325653]
[1757670074066,20.0,237.86,237.84,26.0]
[1757670074765,0.7,237.85,237.84,26.0]
[1757670075979,0.7,237.85,237.84,30.20450723]
[1757670077783,20.0,237.86,237.84,30.88450723]
[1757670078079,20.0,237.88,237.85,13.59559401]
[1757670078256,20.0,237.88,237.86,0.68]
[1757670078460,20.0,237.88,237.85,14.27559401]
[1757670078668,20.0,237.88,237.85,13.59559401]
[1757670078889,0.7,237.87,237.86,12.61060552]
[1757670079199,20.7,237.87,237.84,30.20450723]
[1757670079491,0.7,237.86,237.84,42.81723347]
[1757670079865,20.7,237.85,237.84,42.81723347]
[1757670081068,20.73,237.85,237.84,42.81723347]
[1757670081262,20.03,237.85,237.84,30.20450723]
[1757670081683,20.03,237.85,237.84,42.81670322]
[1757670084872,0.03,237.85,237.84,57.07229723]
[1757670090592,0.1,237.89,237.84,67.5835653]
[1757670090902,0.1,237.91,237.85,0.66]
[1757670091196,0.1,237.91,237.88,39.59559401]
[1757670091385,0.1,237.91,237.89,0.66]
[1757670091785,0.1,237.91,237.89,2.34091947]
[1757670092602,0.1,237.91,237.89,6.54454299]
[1757670092783,0.1,237.91,237.89,5.88454299]
[1757670092986,0.78,237.9,237.89,1.68091947]
[1757670093386,20.0,237.89,237.88,30.20380023]
[1757670099022,20.0,237.89,237.88,30.23380023]
[1757670099900,20.0,237.89,237.88,44.48939424]
[1757670100088,20.0,237.89,237.88,56.43840969]
[1757670100677,20.0,237.89,237.88,42.84281568]
[1757670100678,20.72,237.89,237.88,42.84281568]
[1757670100879,20.72,237.89,237.88,4.23380023]
[1757670101978,20.0,237.89,237.88,4.23380023]
[1757670102411,20.0,237.89,237.88,30.23380023]
[1757670102581,20.72,237.89,237.88,26.03]
[1757670103505,20.72,237.89,237.88,0.03]
[1757670105117,20.0,237.89,237.88,0.03]
[1757670106202,20.72,237.89,237.88,0.03]
[1757670115017,20.0,237.89,237.88,0.03]
[1757670115412,20.71,237.89,237.88,0.03]
[1757670118402,20.77,237.89,237.88,0.03]
[1757670127928,20.06,237.89,237.88,0.71]
[1757670128518,0.06,237.89,237.88,40.30559401]
[1757670128923,0.06,237.89,237.88,52.91407953]
[1757670129232,0.06,237.89,237.88,44.50939424]
[1757670132035,20.1,238.0,237.94,39.59559401]
[1757670132422,20.1,238.0,237.98,39.59559401]
[1757670132622,0.1,238.0,237.98,39.59559401]
[1757670132850,0.1,238.0,237.98,40.27559401]
[1757670133058,20.1,238.0,237.98,40.27559401]
[1757670133927,20.1,238.0,237.98,44.47762779]
[1757670134128,0.1,238.0,237.96,30.88226292]
[1757670134331,0.71,237.98,237.96,26.0]
[1757670134559,20.0,237.94,237.93,12.60530684]
[1757670134740,20.71,237.94,237.93,12.60530684]
[1757670134938,20.0,237.94,237.93,12.60530684]
[1757670135249,20.0,237.94,237.92,4.20304389]
[1757670135433,20.0,237.94,237.93,26.0]
[1757670135634,20.0,237.94,237.91,26.0]
[1757670135846,20.71,237.94,237.93,26.0]
[1757670136252,20.0,237.9,237.88,18.22857884]
[1757670136570,20.0,237.9,237.88,40.02495501]
[1757670137335,20.0,237.9,237.89,0.68]
[1757670137530,20.0,237.9,237.88,14.02495501]
[1757670137756,20.0,237.9,237.88,14.70495501]
[1757670137936,20.0,237.9,237.89,26.0]
[1757670138270,20.0,237.9,237.89,26.68]
[1757670138566,20.0,237.9,237.89,26.0]
[1757670139245,20.0,237.9,237.89,26.68]
[1757670139835,20.71,237.9,237.89,26.0]
[1757670140250,20.0,237.9,237.89,30.20362352]
[1757670143958,20.71,237.9,237.88,0.429361]
[1757670144267,0.71,237.89,237.88,26.429361]
[1757670145446,20.0,237.9,237.88,26.429361]
[1757670145653,20.0,237.9,237.88,30.63315155]
[1757670146942,20.0,237.9,237.88,31.34315155]
[1757670147857,20.0,237.9,237.89,0.71]
[1757670148059,20.0,237.9,237.89,4.91362352]
[1757670151857,20.0,237.93,237.9,13.59559401]
[1757670152061,20.0,237.93,237.91,0.71]
[1757670152468,20.0,237.91,237.9,13.59559401]
[1757670152778,20.0,237.91,237.9,14.30559401]
[1757670153371,20.0,237.91,237.9,18.50904083]
[1757670154344,20.7,237.91,237.89,26.0]
[1757670155441,20.7,237.91,237.89,30.20349099]
[1757670155771,0.7,237.9,237.89,26.0]
[1757670155953,20.0,237.89,237.88,0.429361]
[1757670156157,20.7,237.89,237.88,0.429361]
[1757670159874,20.0,237.89,237.88,0.429361]
[1757670160169,20.0,237.89,237.88,4.63316123]
[1757670160348,20.7,237.89,237.88,4.63316123]
[1757670160549,20.7,237.89,237.88,0.429361]
[1757670161653,20.0,237.89,237.88,4.63316123]
[1757670161854,20.0,237.89,237.88,5.34316123]
[1757670162074,20.0,237.89,237.88,4.63316123]
[1757670168376,20.0,237.89,237.88,0.429361]
[1757670170056,20.0,237.89,237.88,4.63316123]
[1757670170457,20.7,237.89,237.88,4.63316123]
[1757670171564,20.0,237.89,237.88,4.63316123]
[1757670171756,20.7,237.89,237.88,0.429361]
[1757670172183,20.0,237.89,237.88,0.429361]
[1757670176082,20.67,237.89,237.88,0.429361]
[1757670176285,20.0,237.89,237.88,0.429361]
[1757670178563,20.67,237.89,237.88,0.429361]
[1757670179266,24.87362352,237.89,237.88,0.429361]
[1757670185595,20.67,237.89,237.88,0.429361]
[1757670186879,20.0,237.89,237.88,5.32316123]
[1757670200186,20.0,237.89,237.88,27.119361]
[1757670200393,20.0,237.89,237.88,31.32316123]
[1757670200903,20.0,237.89,237.88,30.63316123]
[1757670201917,20.0,237.89,237.88,44.91875524]
[1757670202086,20.0,237.9,237.89,13.59559401]
[1757670202605,20.0,237.92,237.89,14.28559401]
[1757670202794,20.0,237.92,237.9,0.69]
[1757670203195,20.0,237.92,237.91,0.69]
[1757670204011,20.0,237.94,237.91,41.4014455]
[1757670204312,20.0,237.94,237.92,0.69]
[1757670204884,20.0,237.94,237.93,0.72]
[1757670205514,20.0,237.94,237.93,4.92291682]
[1757670206181,20.0,237.94,237.93,30.92291682]
[1757670207712,20.0,237.94,237.93,44.51851083]
[1757670209411,0.06,237.95,237.94,13.59559401]
[1757670209620,0.06,237.95,237.94,14.31559401]
[1757670210203,0.06,237.95,237.94,18.51833419]
[1757670210900,0.06,237.95,237.94,31.12258182]
[1757670216321,0.74,237.95,237.94,26.19984164]
[1757670216501,20.74,237.95,237.94,26.0]
[1757670217325,20.0,237.91,237.9,12.60689597]
[1757670217515,20.0,237.91,237.9,13.59559401]
[1757670217715,20.0,237.93,237.92,39.59559401]
[1757670219310,20.0,237.93,237.92,43.79868748]
[1757670222808,20.0,237.93,237.92,43.82868748]
[1757670224731,20.0,237.93,237.92,44.54868748]
[1757670227504,20.06,237.95,237.94,26.0]
[1757670227808,20.06,237.95,237.94,44.51833419]
[1757670229820,0.06,237.95,237.94,44.51833419]
[1757670232939,0.06,237.95,237.94,43.79833419]
[1757670233321,0.74,237.95,237.94,43.79833419]
[1757670233837,0.06,237.95,237.94,43.79833419]
[1757670235039,0.06,237.95,237.94,44.50833419]
[1757670235936,0.06,237.95,237.94,57.1131114]
[1757670236338,0.06,237.95,237.94,56.4031114]
[1757670236542,0.72,237.95,237.94,43.79833419]
[1757670236943,0.06,237.95,237.94,56.4031114]
[1757670237640,0.06,237.95,237.94,57.1131114]
[1757670238218,0.06,237.95,237.94,56.4031114]
[1757670238738,0.72,237.95,237.94,56.4031114]
[1757670239331,0.06,237.95,237.94,56.4031114]
[1757670243550,0.06,237.95,237.94,52.20037122]
[1757670243850,0.72,237.95,237.94,39.59559401]
[1757670244360,0.72,237.95,237.94,43.79833419]
[1757670245061,0.72,237.95,237.93,4.20291297]
[1757670245229,20.0,237.93,237.92,0.03]
[1757670245734,20.66,237.93,237.92,0.03]
[1757670246450,20.66,237.93,237.92,4.23309347]
[1757670247363,20.0,237.93,237.92,17.82868748]
[1757670249933,20.0,237.93,237.92,18.53868748]
[1757670250144,20.0,237.93,237.92,31.14452398]
[1757670251369,20.06,237.95,237.94,39.59559401]
[1757670251531,0.06,237.95,237.94,40.30559401]
[1757670251956,0.06,237.95,237.94,44.50833419]
[1757670252161,0.06,237.95,237.94,57.11205229]
[1757670256248,0.72,237.95,237.94,56.40205229]
[1757670256657,20.72,237.95,237.92,0.03]
[1757670256862,20.0,237.93,237.92,26.03]
[1757670257070,20.66,237.93,237.92,4.23303839]
[1757670257865,20.66,237.93,237.92,30.23303839]
[1757670263366,20.0,237.93,237.92,30.23303839]
[1757670263759,20.0,237.93,237.92,43.55046416]
[1757670264774,20.0,237.93,237.92,57.14605817]
[1757670268070,0.06,237.95,237.93,13.59559401]
[1757670268071,20.06,237.95,237.93,13.59559401]
[1757670268279,20.06,237.95,237.93,14.24559401]
[1757670268481,20.06,237.95,237.93,13.59559401]
[1757670268677,20.06,237.95,237.94,40.24559401]
[1757670269392,20.06,237.95,237.94,52.20143052]
[1757670270093,20.06,237.95,237.94,56.4041707]
[1757670274690,20.06,237.95,237.94,56.4341707]
[1757670276394,20.74,237.95,237.94,26.03]
[1757670276599,20.74,237.95,237.94,0.03]
[1757670277282,20.74,237.95,237.94,4.23274018]
[1757670280497,20.06,237.95,237.94,4.23274018]
[1757670280797,20.74,237.95,237.94,4.23274018]
[1757670281095,20.06,237.95,237.94,4.23274018]
[1757670281688,20.06,237.95,237.94,4.88274018]
[1757670281884,20.06,237.95,237.94,30.88274018]
[1757670282295,20.06,237.95,237.94,57.08470041]
[1757670282718,20.06,237.95,237.94,56.43470041]
[1757670287215,20.06,237.95,237.94,57.08470041]
[1757670289409,20.06,237.95,237.94,56.43470041]
[1757670289790,20.06,237.95,237.94,57.08470041]
[1757670291109,0.06,237.95,237.94,57.08470041]
[1757670296314,0.06,237.95,237.94,56.43470041]
[1757670297123,20.78,237.95,237.94,0.03]
[1757670301194,20.06,237.95,237.94,0.03]
[1757670302421,20.06,237.95,237.94,4.23274018]
[1757670305314,20.78,237.95,237.94,4.23274018]
[1757670306428,20.06,237.95,237.94,4.23274018]
[1757670308835,20.06,237.95,237.94,18.54833419]
[1757670309323,20.06,237.95,237.94,31.15417069]
[1757670310104,20.06,237.95,237.94,18.54833419]
[1757670310326,20.06,237.95,237.94,31.15364103]
[1757670312529,0.06,237.98,237.97,39.59559401]
[1757670312733,1e-08,237.98,237.97,39.59559401]
[1757670312903,0.1,238.0,237.98,13.59559401]
[1757670313117,0.1,238.0,237.99,17.79745123]
[1757670313331,0.1,238.0,237.99,18.51745123]
[1757670315816,1e-08,238.02,238.01,39.59559401]
[1757670316145,1e-08,238.02,238.01,13.59559401]
[1757670316519,0.72000001,238.02,238.01,1.68021339]
[1757670316739,0.72000001,238.02,237.96,13.59559401]
[1757670316933,0.72,238.01,237.96,39.59559401]
[1757670317112,1e-08,238.02,237.96,40.31559401]
[1757670317309,0.72,238.0,237.97,4.20221036]
[1757670317653,0.72,237.99,237.98,26.0]
[1757670318435,1e-08,238.02,237.98,26.0]
[1757670318623,0.72,238.01,237.98,26.0]
[1757670318818,1e-08,238.02,237.98,26.72]
[1757670319136,0.72000001,238.02,237.99,13.59559401]
[1757670319320,0.72,238.01,238.0,4.20168067]
[1757670323330,0.72,238.01,238.0,26.0]
[1757670323535,0.72,238.01,237.99,0.399177]
[1757670325134,0.66,238.0,237.99,0.399177]
[1757670325935,0.66000001,238.02,237.99,0.399177]
[1757670326136,0.66000001,238.02,237.99,4.60100699]
[1757670327023,15.1,238.01,237.99,4.60100699]
[1757670327227,15.76,238.01,237.99,4.60100699]
[1757670328940,1e-08,238.02,238.0,39.59559401]
[1757670329125,1e-08,238.02,238.0,40.25559401]
[1757670329324,1e-08,238.02,238.01,14.25559401]
[1757670329940,1e-08,238.02,238.01,18.45709814]
[1757670330524,1e-08,238.02,238.01,20.13724095]
[1757670332344,1e-08,238.02,238.01,19.47724095]
[1757670333427,0.66000001,238.02,238.01,5.88164694]
[1757670333623,1e-08,238.02,238.01,5.88164694]
[1757670333818,1e-08,238.02,238.01,19.47724095]
[1757670334433,0.66000001,238.02,238.01,19.47724095]
[1757670334829,1e-08,238.02,238.01,19.47724095]
[1757670336349,0.66000001,238.02,237.99,0.399177]
[1757670336845,1e-08,238.02,237.99,0.399177]
[1757670337050,0.66000001,238.02,237.99,0.399177]
[1757670337452,0.66000001,238.02,237.99,4.60103107]
[1757670337832,1e-08,238.02,238.01,4.20150413]
[1757670338654,1e-08,238.02,238.01,18.45709814]
[1757670341048,1e-08,238.02,238.01,17.79709814]
[1757670341545,0.66000001,238.02,238.01,4.20150413]
[1757670341746,1e-08,238.02,238.01,4.20150413]
[1757670343739,0.66000001,238.02,238.01,4.20150413]
[1757670344049,0.66000001,238.02,238.01,0.03]
[1757670346548,1e-08,238.02,238.01,0.03]
[1757670351432,0.66000001,238.02,238.01,0.03]
[1757670351646,1e-08,238.02,238.01,0.03]
[1757670355642,0.70000001,238.02,238.01,0.03]
[1757670359282,4.90132762,238.02,238.01,0.03]
[1757670360060,0.70000001,238.02,238.01,0.03]
[1757670360244,1e-08,238.02,238.01,0.03]
[1757670360773,0.70000001,238.02,238.01,0.03]
[1757670361469,4.90132762,238.02,238.01,0.03]
[1757670367580,0.70000001,238.02,238.01,0.03]
[1757670368080,4.90132762,238.02,238.01,0.03]
[1757670368291,18.49692163,238.02,238.01,0.03]
[1757670370484,4.90132762,238.02,238.01,0.03]
[1757670371485,15.04,237.98,237.96,0.03]
[1757670373370,15.04,237.98,237.97,0.7]
[1757670375466,15.04,237.98,237.97,4.90221036]
[1757670375762,106.02839555,238.01,237.97,4.90221036]
[1757670375964,106.02839555,238.01,237.98,0.7]
[1757670376165,106.02839555,238.01,237.96,0.03]
[1757670376166,15.1,238.0,237.96,0.73]
[1757670376388,15.1,238.0,237.97,0.7]
[1757670376584,15.1,238.0,237.96,0.03]
[1757670376803,0.7,237.99,237.96,0.03]
[1757670377508,15.1,238.0,237.96,0.03]
[1757670377674,15.1,238.0,237.97,0.7]
[1757670377874,15.1,238.0,237.97,4.90212604]
[1757670379000,15.1,238.0,237.97,4.20212604]
[1757670379204,15.8,238.0,237.97,4.20212604]
[1757670379383,15.1,238.0,237.97,4.20212604]
[1757670380201,15.1,238.0,237.96,4.23238695]
[1757670380394,15.1,237.99,237.96,4.93238695]
[1757670380570,15.1,237.99,237.97,0.7]
[1757670381086,15.1,237.99,237.98,0.7]
[1757670382276,0.06,238.01,237.99,4.20185722]
[1757670382598,0.06,238.01,238.0,0.7]
[1757670384902,15.1,238.0,237.97,4.86221036]
[1757670385971,0.68,237.99,237.96,0.03]
[1757670387480,15.78,237.98,237.96,0.03]
[1757670388406,0.68,237.97,237.96,0.03]
[1757670392901,0.68,237.99,237.96,0.03]
[1757670393092,0.06,238.01,237.96,0.69]
[1757670393409,0.68,238.0,237.96,0.03]
[1757670393608,0.68,237.99,237.96,0.03]
[1757670393992,0.68,237.98,237.96,0.03]
[1757670395515,0.68,237.97,237.96,0.03]
[1757670396898,4.88221036,237.97,237.96,0.03]
[1757670401011,18.47780437,237.97,237.96,0.03]
[1757670401898,4.88221036,237.97,237.96,0.03]
[1757670404217,30.88221036,237.97,237.96,0.03]
[1757670405124,14.98,237.92,237.91,0.03]
[1757670405301,4.20266868,237.95,237.91,0.03]
[1757670405496,4.20266868,237.95,237.91,0.69]
[1757670406115,131.1,237.96,237.91,0.69]
[1757670406116,131.1,237.96,237.92,0.66]
[1757670406504,131.78,237.96,237.91,0.03]
[1757670406701,131.78,237.96,237.92,0.66]
[1757670407121,15.0,237.95,237.91,4.23318517]
[1757670407419,15.0,237.95,237.93,0.66]
[1757670408010,15.0,237.95,237.94,0.66]
[1757670409523,15.0,237.95,237.94,4.86274018]
[1757670409725,15.0,238.0,237.94,15.36959064]
[1757670409923,15.0,237.99,237.95,0.66]
[1757670410227,15.0,237.99,237.96,0.66]
[1757670410401,15.0,237.99,237.97,0.66]
[1757670410602,15.0,237.99,237.98,0.66]
[1757670411814,15.0,237.99,237.98,4.86203378]
[1757670415121,15.06,237.99,237.98,4.86203378]
[1757670416232,0.06,237.99,237.98,4.86203378]
[1757670416434,0.06,237.99,237.98,0.66]
[1757670416612,0.06,237.99,237.98,4.86203378]
[1757670417705,0.06,237.99,237.98,18.45762779]
[1757670418516,0.06,238.01,238.0,39.59559401]
[1757670418917,0.06,238.01,238.0,40.27559401]
[1757670419640,0.06,238.01,238.0,44.47727468]
[1757670420644,0.06,238.01,238.0,30.20168067]
[1757670420816,0.06,238.01,238.0,4.20168067]
[1757670422131,0.06,238.01,238.0,4.88168067]
[1757670424620,1e-08,238.02,238.0,30.88168067]
[1757670424848,1e-08,238.06,238.04,39.59559401]
[1757670425220,1e-08,238.06,238.05,0.68]
[1757670425538,1e-08,238.06,238.05,2.35979002]
[1757670426335,1e-08,238.06,238.05,14.27559401]
[1757670426641,1e-08,238.06,238.04,1.67993112]
[1757670426844,1e-08,238.06,238.05,4.20079815]
[1757670427450,1e-08,238.06,238.03,26.0]
[1757670427651,1e-08,238.06,237.9,20.0]
[1757670427652,0.66,238.05,237.98,0.68]
[1757670427848,0.66,238.05,237.98,4.20203378]
[1757670428141,0.66,238.04,237.98,4.20203378]
[1757670429624,0.66,238.03,237.98,4.20203378]
[1757670429826,0.66,238.03,237.98,4.88203378]
[1757670432037,0.66,238.03,237.99,0.68]
[1757670432530,0.66,238.03,237.98,0.03]
[1757670432728,0.66,238.03,237.98,0.71]
[1757670433154,0.66,238.03,237.99,4.20185722]
[1757670433759,0.06,238.04,237.98,26.03]
[1757670433760,15.66,238.02,237.98,26.03]
[1757670433935,0.66,238.01,237.98,26.03]
[1757670434140,0.66,238.01,237.98,30.23203364]
[1757670434933,15.0,238.02,237.98,30.23203364]
[1757670435141,15.66,238.02,237.98,30.23203364]
[1757670435647,15.0,238.02,237.98,30.23203364]
[1757670435849,0.66,238.01,237.98,4.23202065]
[1757670436064,15.0,238.02,237.98,4.23202065]
[1757670436265,15.0,238.02,237.98,0.71]
[1757670436564,15.0,238.02,237.98,0.03]
[1757670436755,0.66,238.01,237.98,0.03]
[1757670437162,0.66,238.0,237.98,0.03]
[1757670438168,1e-08,238.04,238.01,59.59559401]
[1757670438357,0.1,238.25,237.99,0.68]
[1757670438358,12.60265917,238.22,238.15,26.0]
[1757670438569,0.66,238.23,238.16,0.68]
[1757670438862,0.1,238.25,238.17,0.68]
[1757670439167,0.1,238.25,238.18,13.59559401]
[1757670439354,1e-08,238.19,238.18,14.27559401]
[1757670439740,1e-08,238.19,238.18,15.95453795]
[1757670439935,1e-08,238.19,238.18,20.15304328]
[1757670440948,0.1,238.25,238.18,20.15304328]
[1757670440949,1e-08,238.2,238.18,20.15304328]
[1757670441161,1e-08,238.2,238.19,14.27559401]
[1757670446561,0.1,238.29,238.23,39.59559401]